{"text_format":"1","workbook":"xlsx","n_sheets":2,"sheets":["1","2"],"not_rendered":{"charts":0,"images":0,"macros":1,"external_links":0,"defined_names":0,"comments":1,"pivot_tables":0},"unopened":[],"bounds":{"document_bytes":16777216,"sheet_cells":100000,"rows_first":2000,"rows_last":500,"rows_between":2000,"halvings":0,"cell_chars":16384,"cell_head_chars":4096},"cells_cut":0,"cells_raw":0,"read":"whole","date_system":"1900"}

{"sheet":"1","index":0,"n_rows":18,"n_cols":12,"rows_kept":18,"cut":false,"hidden":false,"merged":[[1,7,1,9],[1,4,1,6],[0,0,0,9]]}
["السيارات"]
["بيان السياره","تاريخ الانتهاء","الحاله","حالة التامين","حالة الفحص",null,null,"حالة الاستماره",null,null,null,"التامين منتهيه"]
["بكب 2 غماره ا هـ ر7981","2024-03-04",{"$f":"B3-TODAY()","v":16},{"$f":"_xlfn.IFS(C3<=0,\"التامين منتهيه\",C3<=10,\"التامين اوشكت على الانتهاء\",C3>10,\"التامين  ساريه\",C3=\"التامين منتهيه\",\"التامين منتهيه\")","v":"التامين  ساريه"},"2024-02-21",{"$f":"E3-TODAY()","v":4},{"$f":"_xlfn.IFS(F3<=0,\"الفحص منتهى\",F3<=10,\"الفحص على وشك الانتهاء\",F3>10,\"الفحص سارى\")","v":"الفحص على وشك الانتهاء"},"2025-07-11",{"$f":"H3-TODAY()","v":510},{"$f":"_xlfn.IFS(I3<=0,\"الاستماره منتهيه\",I3<=10,\"الاستماره على وشك الانتهاء\",I3>10,\"الاستماره ساريه\")","v":"الاستماره ساريه"},null,"التامين اوشكت على الانتهاء"]
[" كيا ر ط ر 9311","2024-09-10",{"$f":"B4-TODAY()","v":206},{"$f":"_xlfn.IFS(C4<=0,\"التامين منتهيه\",C4<=10,\"التامين اوشكت على الانتهاء\",C4>10,\"التامين  ساريه\",C4=\"التامين منتهيه\",\"التامين منتهيه\")","v":"التامين  ساريه"},null,null,{"$f":"_xlfn.IFS(F4<=0,\"الفحص منتهى\",F4<=10,\"لفحص على وشك الانتهاء\",F4>10,\"الفحص سارى\")","v":"الفحص منتهى"},"2026-08-12",{"$f":"H4-TODAY()","v":907},{"$f":"_xlfn.IFS(I4<=0,\"الاستماره منتهيه\",I4<=10,\"الاستماره على وشك الانتهاء\",I4>10,\"الاستماره ساريه\")","v":"الاستماره ساريه"},null,"التامين  ساريه"]
["اكسنت ح ه ع 3381","2024-09-01",197,{"$f":"_xlfn.IFS(C5<=0,\"التامين منتهيه\",C5<=10,\"التامين اوشكت على الانتهاء\",C5>10,\"التامين  ساريه\",C5=\"التامين منتهيه\",\"التامين منتهيه\")","v":"التامين  ساريه"},"2024-04-18",{"$f":"E5-TODAY()","v":61},{"$f":"_xlfn.IFS(F5<=0,\"الفحص منتهى\",F5<=10,\"لفحص على وشك الانتهاء\",F5>10,\"الفحص سارى\")","v":"الفحص سارى"},"2024-12-26",313,{"$f":"_xlfn.IFS(I5<=0,\"الاستماره منتهيه\",I5<=10,\"الاستماره على وشك الانتهاء\",I5>10,\"الاستماره ساريه\")","v":"الاستماره ساريه"},null,"الفحص على وشك الانتهاء"]
["ايسوزو 2 غماره  ب ط م 2263","2024-12-17",304,{"$f":"_xlfn.IFS(C6<=0,\"التامين منتهيه\",C6<=10,\"التامين اوشكت على الانتهاء\",C6>10,\"التامين  ساريه\",C6=\"التامين منتهيه\",\"التامين منتهيه\")","v":"التامين  ساريه"},null,-1,{"$f":"_xlfn.IFS(F6<=0,\"الفحص منتهى\",F6<=10,\"لفحص على وشك الانتهاء\",F6>10,\"الفحص سارى\")","v":"الفحص منتهى"},"2026-11-17",1004,{"$f":"_xlfn.IFS(I6<=0,\"الاستماره منتهيه\",I6<=10,\"الاستماره على وشك الانتهاء\",I6>10,\"الاستماره ساريه\")","v":"الاستماره ساريه"},null,"الفحص سارى"]
["يارس ب ب ط 8173","2024-09-21",217,{"$f":"_xlfn.IFS(C7<=0,\"التامين منتهيه\",C7<=10,\"التامين اوشكت على الانتهاء\",C7>10,\"التامين  ساريه\",C7=\"التامين منتهيه\",\"التامين منتهيه\")","v":"التامين  ساريه"},"2024-09-20",216,{"$f":"_xlfn.IFS(F7<=0,\"الفحص منتهى\",F7<=10,\"لفحص على وشك الانتهاء\",F7>10,\"الفحص سارى\")","v":"الفحص سارى"},"2024-12-04",291,{"$f":"_xlfn.IFS(I7<=0,\"الاستماره منتهيه\",I7<=10,\"الاستماره على وشك الانتهاء\",I7>10,\"الاستماره ساريه\")","v":"الاستماره ساريه"},null,"الفحص منتهى"]
["ايسوزو غمارتين ب ح ق 4529","2024-09-03",199,{"$f":"_xlfn.IFS(C8<=0,\"التامين منتهيه\",C8<=10,\"التامين اوشكت على الانتهاء\",C8>10,\"التامين  ساريه\",C8=\"التامين منتهيه\",\"التامين منتهيه\")","v":"التامين  ساريه"},"2025-02-05",354,{"$f":"_xlfn.IFS(F8<=0,\"الفحص منتهى\",F8<=10,\"لفحص على وشك الانتهاء\",F8>10,\"الفحص سارى\")","v":"الفحص سارى"},"2025-11-15",637,{"$f":"_xlfn.IFS(I8<=0,\"الاستماره منتهيه\",I8<=10,\"الاستماره على وشك الانتهاء\",I8>10,\"الاستماره ساريه\")","v":"الاستماره ساريه"},null,"الاستماره منتهيه"]
["فوتن ا و ن 1660","2021-08-19",-912,{"$f":"_xlfn.IFS(C9<=0,\"التامين منتهيه\",C9<=10,\"التامين اوشكت على الانتهاء\",C9>10,\"التامين  ساريه\",C9=\"التامين منتهيه\",\"التامين منتهيه\")","v":"التامين منتهيه"},null,-1,{"$f":"_xlfn.IFS(F9<=0,\"الفحص منتهى\",F9<=10,\"لفحص على وشك الانتهاء\",F9>10,\"الفحص سارى\")","v":"الفحص منتهى"},"2017-08-09",-2383,{"$f":"_xlfn.IFS(I9<=0,\"الاستماره منتهيه\",I9<=10,\"الاستماره على وشك الانتهاء\",I9>10,\"الاستماره ساريه\")","v":"الاستماره منتهيه"},null,"الاستماره على وشك الانتهاء"]
["جى اكس ار ب س ك 6468","2025-01-26",344,{"$f":"_xlfn.IFS(C10<=0,\"التامين منتهيه\",C10<=10,\"التامين اوشكت على الانتهاء\",C10>10,\"التامين  ساريه\",C10=\"التامين منتهيه\",\"التامين منتهيه\")","v":"التامين  ساريه"},"2024-01-26",-22,{"$f":"_xlfn.IFS(F10<=0,\"الفحص منتهى\",F10<=10,\"لفحص على وشك الانتهاء\",F10>10,\"الفحص سارى\")","v":"الفحص منتهى"},"2025-08-02",532,{"$f":"_xlfn.IFS(I10<=0,\"الاستماره منتهيه\",I10<=10,\"الاستماره على وشك الانتهاء\",I10>10,\"الاستماره ساريه\")","v":"الاستماره ساريه"},null,"الاستماره ساريه"]
["كورولا ب ن ب 9839","2024-08-29",194,{"$f":"_xlfn.IFS(C11<=0,\"التامين منتهيه\",C11<=10,\"التامين اوشكت على الانتهاء\",C11>10,\"التامين  ساريه\",C11=\"التامين منتهيه\",\"التامين منتهيه\")","v":"التامين  ساريه"},"2024-09-05",201,{"$f":"_xlfn.IFS(F11<=0,\"الفحص منتهى\",F11<=10,\"لفحص على وشك الانتهاء\",F11>10,\"الفحص سارى\")","v":"الفحص سارى"},"2026-12-05",1022,{"$f":"_xlfn.IFS(I11<=0,\"الاستماره منتهيه\",I11<=10,\"الاستماره على وشك الانتهاء\",I11>10,\"الاستماره ساريه\")","v":"الاستماره ساريه"}]
["تويوتا غماره  أ ق ر 1370","2024-08-31",196,{"$f":"_xlfn.IFS(C12<=0,\"التامين منتهيه\",C12<=10,\"التامين اوشكت على الانتهاء\",C12>10,\"التامين  ساريه\",C12=\"التامين منتهيه\",\"التامين منتهيه\")","v":"التامين  ساريه"},"2025-02-13",362,{"$f":"_xlfn.IFS(F12<=0,\"الفحص منتهى\",F12<=10,\"لفحص على وشك الانتهاء\",F12>10,\"الفحص سارى\")","v":"الفحص سارى"},"2024-03-25",37,{"$f":"_xlfn.IFS(I12<=0,\"الاستماره منتهيه\",I12<=10,\"الاستماره على وشك الانتهاء\",I12>10,\"الاستماره ساريه\")","v":"الاستماره ساريه"}]
["بكب غمارتين تويوتا ا ه ى 1811","2024-09-02",198,{"$f":"_xlfn.IFS(C13<=0,\"التامين منتهيه\",C13<=10,\"التامين اوشكت على الانتهاء\",C13>10,\"التامين  ساريه\",C13=\"التامين منتهيه\",\"التامين منتهيه\")","v":"التامين  ساريه"},"2024-09-02",198,{"$f":"_xlfn.IFS(F13<=0,\"الفحص منتهى\",F13<=10,\"لفحص على وشك الانتهاء\",F13>10,\"الفحص سارى\")","v":"الفحص سارى"},"2023-12-26",-53,{"$f":"_xlfn.IFS(I13<=0,\"الاستماره منتهيه\",I13<=10,\"الاستماره على وشك الانتهاء\",I13>10,\"الاستماره ساريه\")","v":"الاستماره منتهيه"}]
["ايسوزو جوانب ب ا ح 4394","2024-08-13",178,{"$f":"_xlfn.IFS(C14<=0,\"التامين منتهيه\",C14<=10,\"التامين اوشكت على الانتهاء\",C14>10,\"التامين  ساريه\",C14=\"التامين منتهيه\",\"التامين منتهيه\")","v":"التامين  ساريه"},"2024-12-13",300,{"$f":"_xlfn.IFS(F14<=0,\"الفحص منتهى\",F14<=10,\"لفحص على وشك الانتهاء\",F14>10,\"الفحص سارى\")","v":"الفحص سارى"},"2024-01-30",-18,{"$f":"_xlfn.IFS(I14<=0,\"الاستماره منتهيه\",I14<=10,\"الاستماره على وشك الانتهاء\",I14>10,\"الاستماره ساريه\")","v":"الاستماره منتهيه"}]
["ايسزو غمارتين  ب ح ق 4553","2025-02-15",364,{"$f":"_xlfn.IFS(C15<=0,\"التامين منتهيه\",C15<=10,\"التامين اوشكت على الانتهاء\",C15>10,\"التامين  ساريه\",C15=\"التامين منتهيه\",\"التامين منتهيه\")","v":"التامين  ساريه"},"2025-02-07",356,{"$f":"_xlfn.IFS(F15<=0,\"الفحص منتهى\",F15<=10,\"لفحص على وشك الانتهاء\",F15>10,\"الفحص سارى\")","v":"الفحص سارى"},"2025-11-16",638,{"$f":"_xlfn.IFS(I15<=0,\"الاستماره منتهيه\",I15<=10,\"الاستماره على وشك الانتهاء\",I15>10,\"الاستماره ساريه\")","v":"الاستماره ساريه"}]
["اكسنت ح ن ق 2653","2024-09-23",219,{"$f":"_xlfn.IFS(C16<=0,\"التامين منتهيه\",C16<=10,\"التامين اوشكت على الانتهاء\",C16>10,\"التامين  ساريه\",C16=\"التامين منتهيه\",\"التامين منتهيه\")","v":"التامين  ساريه"},"2024-07-29",163,{"$f":"_xlfn.IFS(F16<=0,\"الفحص منتهى\",F16<=10,\"لفحص على وشك الانتهاء\",F16>10,\"الفحص سارى\")","v":"الفحص سارى"},"2024-10-30",256,{"$f":"_xlfn.IFS(I16<=0,\"الاستماره منتهيه\",I16<=10,\"الاستماره على وشك الانتهاء\",I16>10,\"الاستماره ساريه\")","v":"الاستماره ساريه"}]
["يارس ح د ط 7408","2025-02-15",364,{"$f":"_xlfn.IFS(C17<=0,\"التامين منتهيه\",C17<=10,\"التامين اوشكت على الانتهاء\",C17>10,\"التامين  ساريه\",C17=\"التامين منتهيه\",\"التامين منتهيه\")","v":"التامين  ساريه"},"2024-01-23",-25,{"$f":"_xlfn.IFS(F17<=0,\"الفحص منتهى\",F17<=10,\"لفحص على وشك الانتهاء\",F17>10,\"الفحص سارى\")","v":"الفحص منتهى"},"2025-08-28",558,{"$f":"_xlfn.IFS(I17<=0,\"الاستماره منتهيه\",I17<=10,\"الاستماره على وشك الانتهاء\",I17>10,\"الاستماره ساريه\")","v":"الاستماره ساريه"}]
["ايسوزو غمارتين ب ح ق  4553","2025-02-15",364,{"$f":"_xlfn.IFS(C18<=0,\"التامين منتهيه\",C18<=10,\"التامين اوشكت على الانتهاء\",C18>10,\"التامين  ساريه\",C18=\"التامين منتهيه\",\"التامين منتهيه\")","v":"التامين  ساريه"},"2025-02-07",356,{"$f":"_xlfn.IFS(F18<=0,\"الفحص منتهى\",F18<=10,\"لفحص على وشك الانتهاء\",F18>10,\"الفحص سارى\")","v":"الفحص سارى"},"2025-11-16",638,{"$f":"_xlfn.IFS(I18<=0,\"الاستماره منتهيه\",I18<=10,\"الاستماره على وشك الانتهاء\",I18>10,\"الاستماره ساريه\")","v":"الاستماره ساريه"}]

{"sheet":"2","index":1,"n_rows":4,"n_cols":12,"rows_kept":4,"cut":false,"hidden":false,"merged":[[3,4,3,6],[3,7,3,9],[1,4,1,6]]}
[]
[null,"التامين  ساريه",null,null,"الاستماره على وشك الانتهاء"]
[]
["بيان السياره","تاريخ الانتهاء","الحاله","حالة التامين","حالة الفحص",null,null,"حالة الاستماره",null,null,null,"التامين منتهيه"]